bitfinex/quotes_SOLUSD_20251120
["timestamp","ask_amount","ask_price","bid_price","bid_amount"]
[1763621376336,1.68,142.93,142.9,7.66774279]
[1763621377112,9.78882769,142.92,142.88,18.16713124]
[1763621377335,10.46882769,142.92,142.89,6.99815578]
[1763621377727,10.46882769,142.92,142.89,7.66815578]
[1763621378322,9.78882769,142.92,142.89,7.66815578]
[1763621378649,9.78882769,142.92,142.9,0.67]
[1763621381954,1.68,142.92,142.91,3.3025996]
[1763621382325,1.68,142.92,142.91,10.30001055]
[1763621382554,0.68,143.0,142.91,62.78059272]
[1763621382851,11.46882769,142.99,142.95,2.6325996]
[1763621383353,11.46882769,142.99,142.96,0.67]
[1763621383554,0.68,142.98,142.95,0.67]
[1763621383856,12.14882769,142.99,142.95,0.67]
[1763621384234,12.14882769,142.99,142.95,7.66529572]
[1763621384627,19.14233902,142.99,142.95,7.66529572]
[1763621385146,12.14882769,142.99,142.95,7.66529572]
[1763621385343,11.46882769,142.99,142.96,0.67]
[1763621385547,11.46882769,142.99,142.91,34.98705478]
[1763621385548,12.42142729,142.97,142.93,0.67]
[1763621385758,9.78882769,142.95,142.93,0.67]
[1763621386426,35.58535397,142.95,142.9,3.3025996]
[1763621386849,35.58535397,142.95,142.91,0.67]
[1763621387864,34.90535397,142.95,142.91,0.67]
[1763621388148,7.67467097,142.97,142.92,2.6325996]
[1763621388339,11.46882769,142.96,142.92,2.6325996]
[1763621388530,12.14882769,142.96,142.92,3.3025996]
[1763621389223,10.46882769,142.96,142.92,10.2991684]
[1763621389458,9.78882769,142.94,142.92,7.6665688]
[1763621389982,9.78882769,142.94,142.92,9.6291684]
[1763621390128,9.78882769,142.94,142.92,10.3291684]
[1763621390728,9.78882769,142.94,142.93,0.7]
[1763621390930,9.78882769,142.94,142.93,7.69643181]
[1763621393360,1.68,142.94,142.93,10.32903141]
[1763621394248,1.68,142.94,142.93,27.82011095]
[1763621396352,9.78882769,142.98,142.93,27.82011095]
[1763621396666,1.68,142.97,142.94,3.3325996]
[1763621397263,1.68,142.97,142.95,0.7]
[1763621398459,1.68,142.97,142.95,6.99510364]
[1763621398959,1.68,142.97,142.95,7.69510364]
[1763621399840,1.68,142.97,142.95,6.99510364]
[1763621400160,9.78882769,142.96,142.94,7.69578119]
[1763621401252,9.78882769,142.96,142.94,10.32838079]
[1763621401649,9.78882769,142.96,142.95,0.7]
[1763621402350,9.78882769,142.99,142.95,3.3325996]
[1763621402547,2.38,142.98,142.93,6.99614657]
[1763621402872,12.42142729,142.94,142.9,0.7]
[1763621403045,18.12096,142.96,142.88,0.7]
[1763621403046,9.78882769,142.92,142.88,0.7]
[1763621403245,9.78882769,142.9,142.88,0.7]
[1763621404166,9.78882769,142.9,142.88,7.69880091]
[1763621404569,9.78882769,142.9,142.86,10.33200166]
[1763621404761,10.48882769,142.9,142.86,7.69940206]
[1763621405167,9.78882769,142.93,142.89,2.6325996]
[1763621405368,9.78882769,142.91,142.89,0.7]
[1763621405568,9.78882769,142.91,142.89,7.69833382]
[1763621406071,1.68,142.92,142.9,0.7]
[1763621407476,1.68,142.92,142.9,7.69766028]
[1763621407978,1.68,142.92,142.91,0.7]
[1763621408963,9.78882769,142.94,142.91,0.7]
[1763621409166,1.68,142.92,142.91,0.7]
[1763621409790,1.68,142.92,142.91,7.69741095]
[1763621410596,9.78882769,142.94,142.91,7.69741095]
[1763621410890,1.68,142.93,142.92,0.7]
[1763621411075,1.68,142.93,142.92,3.3325996]
[1763621412089,1.68,142.93,142.92,27.82182433]
[1763621413492,1.68,142.93,142.92,7.69692135]
[1763621413654,1.68,142.93,142.92,6.99692135]
[1763621414454,1.68,142.93,142.92,9.62952095]
[1763621414682,9.78882769,142.94,142.92,25.18922473]
[1763621414863,17.48294866,142.98,142.93,4.81750021]
[1763621415188,9.78882769,142.96,142.94,6.99594235]
[1763621415495,11.46882769,142.95,142.94,11.11344256]
[1763621416374,11.46882769,142.95,142.93,11.81375939]
[1763621417383,11.46882769,142.95,142.93,11.11375939]
[1763621417586,11.46882769,142.95,142.93,4.81750021]
[1763621417787,10.48882769,142.94,142.89,0.7]
[1763621418083,10.48882769,142.94,142.9,4.11750021]
[1763621418284,0.7,142.93,142.9,4.11750021]
[1763621418489,1.68,142.92,142.9,0.7]
[1763621418790,1.68,142.92,142.9,4.81750021]
[1763621419191,1.68,142.92,142.9,22.31190645]
[1763621419567,1.68,142.92,142.91,4.11750021]
[1763621419773,1.68,142.92,142.91,4.81750021]
[1763621420988,9.78882769,142.95,142.91,4.81750021]
[1763621421178,1.68,142.94,142.93,4.11750021]
[1763621422088,1.68,142.94,142.92,11.11401428]
[1763621422287,2.38,142.94,142.92,11.11401428]
[1763621422593,0.7,142.93,142.92,6.99651407]
[1763621422769,2.38,142.94,142.92,11.11401428]
[1763621423104,2.38,142.94,142.92,4.11750021]
[1763621423286,2.38,142.94,142.92,6.99689875]
[1763621425300,9.78882769,142.92,142.9,4.11750021]
[1763621425599,1.68,142.91,142.9,4.78750021]
[1763621426103,1.68,142.91,142.9,11.78526292]
[1763621427372,1.68,142.91,142.9,0.67]
[1763621427568,1.68,142.91,142.9,11.78540083]
[1763621428187,9.78882769,142.92,142.9,11.11540083]
[1763621428390,1.68,142.91,142.9,6.99790062]
[1763621428592,9.78882769,142.94,142.9,7.66790062]
[1763621428593,10.46882769,142.94,142.9,7.66790062]
[1763621428789,9.78882769,142.92,142.88,6.99888017]
[1763621428976,2.36,142.91,142.88,6.99888017]
[1763621429172,1.68,142.91,142.88,7.66888017]
[1763621429378,9.78882769,142.9,142.86,0.67]
[1763621429597,9.78882769,142.88,142.84,5.89020423]
[1763621429775,9.78882769,142.86,142.82,4.11750021]
[1763621430299,9.78882769,142.86,142.84,4.11750021]
[1763621431001,9.78882769,142.86,142.82,7.00171948]
[1763621431185,1.68,142.87,142.85,4.11750021]
[1763621431391,9.78882769,142.88,142.86,4.11750021]
[1763621431700,11.46882769,142.87,142.86,11.11736021]
[1763621432003,11.46882769,142.87,142.86,4.11750021]
[1763621432201,11.46882769,142.87,142.85,7.00027843]
[1763621432402,0.68,142.86,142.84,7.00065753]
[1763621432591,12.14882769,142.87,142.84,11.11815774]
[1763621432902,12.14882769,142.87,142.82,7.00182047]
[1763621432903,10.46882769,142.86,142.82,7.00182047]
[1763621433101,10.46882769,142.86,142.84,4.11750021]
[1763621433803,10.46882769,142.87,142.84,11.11828728]
[1763621434003,11.46882769,142.86,142.85,4.11750021]
[1763621434299,11.46882769,142.86,142.83,7.0012393]
[1763621434499,11.46882769,142.86,142.84,4.11750021]
[1763621436203,11.46882769,142.86,142.84,11.11812256]
[1763621437106,9.78882769,142.85,142.84,7.00062235]
[1763621437489,2.36,142.86,142.84,7.00062235]
[1763621437804,1.68,142.86,142.84,7.00062235]
[1763621439707,1.68,142.86,142.83,11.11883012]
[1763621439913,1.68,142.86,142.83,11.78883012]
[1763621441187,1.68,142.86,142.84,0.67]
[1763621442083,2.36,142.86,142.83,7.00132991]
[1763621442286,1.68,142.86,142.83,7.00132991]
[1763621442538,0.68,142.85,142.82,7.00163537]
[1763621442717,0.68,142.85,142.81,1.93593088]
[1763621442718,9.78882769,142.84,142.81,1.93593088]
[1763621442896,1.68,142.83,142.81,1.93593088]
[1763621443302,1.68,142.83,142.81,2.60593088]
[1763621443507,0.68,142.82,142.81,1.93593088]
[1763621443700,10.46882769,142.82,142.81,1.93593088]
[1763621444203,14.5863279,142.82,142.81,1.93593088]
[1763621444599,12.14882769,142.82,142.81,1.93593088]
[1763621445097,19.15064816,142.82,142.81,1.93593088]
[1763621445489,23.26814837,142.82,142.81,1.93593088]
[1763621448025,9.78882769,142.78,142.77,0.1]
[1763621448202,10.46882769,142.78,142.77,0.1]
[1763621448524,12.14882769,142.78,142.77,0.1]
[1763621448923,11.46882769,142.78,142.77,0.1]
[1763621449542,12.14882769,142.78,142.77,0.1]
[1763621450040,12.18882769,142.78,142.77,0.1]
[1763621450230,23.31010994,142.78,142.77,0.1]
[1763621451230,19.19260973,142.78,142.77,0.1]
[1763621451430,23.31010994,142.78,142.77,0.1]
[1763621451632,14.6263279,142.78,142.77,0.1]
[1763621451802,9.78882769,142.78,142.77,0.1]
[1763621452006,18.47260973,142.78,142.77,0.1]
[1763621452238,22.59010994,142.78,142.77,0.1]
[1763621452530,23.31010994,142.78,142.77,0.1]
[1763621453427,23.31010994,142.78,142.77,1e-08]
[1763621453428,19.19260973,142.78,142.77,1e-08]
[1763621453605,27.90978769,142.76,142.75,0.1]
[1763621453802,4.83750021,142.77,142.75,0.1]
[1763621454018,11.46882769,142.76,142.75,0.1]
[1763621454227,16.3063279,142.76,142.75,0.1]
[1763621454419,34.4272879,142.76,142.75,0.1]
[1763621455830,41.43205113,142.76,142.75,0.1]
[1763621456414,30.30978769,142.76,142.75,0.1]
[1763621457009,34.4272879,142.76,142.75,0.1]
[1763621457210,41.43205113,142.76,142.75,0.1]
[1763621459028,29.58978769,142.76,142.75,0.1]
[1763621459229,11.46882769,142.76,142.75,0.1]
[1763621460434,18.47359092,142.76,142.75,0.1]
[1763621460632,23.31109113,142.76,142.75,0.1]
[1763621461023,18.47359092,142.76,142.75,0.1]
[1763621461233,11.46882769,142.76,142.75,0.1]
[1763621461541,18.47359092,142.76,142.75,0.1]
[1763621462137,11.46882769,142.76,142.75,0.1]
[1763621462741,22.59109113,142.76,142.75,0.1]
[1763621463033,23.31109113,142.76,142.75,0.1]
[1763621463341,16.79555414,142.72,142.71,0.1]
[1763621463633,9.78882769,142.68,142.62,0.66]
[1763621463936,18.12096,142.69,142.59,4.11750021]
[1763621463937,4.11750021,142.65,142.59,4.11750021]
[1763621464135,21.05780367,142.67,142.59,4.11750021]
[1763621464320,18.12096,142.69,142.57,18.78096]
[1763621464321,22.23846021,142.69,142.6,0.66]
[1763621464527,11.46882769,142.68,142.63,4.11750021]
[1763621464829,11.46882769,142.68,142.63,10.96995329]
[1763621465046,11.46882769,142.68,142.64,11.62995329]
[1763621465239,1.68,142.67,142.64,0.66]
[1763621465431,1.68,142.67,142.65,0.66]
[1763621466336,9.78882769,142.66,142.62,0.66]
[1763621466537,1.68,142.65,142.62,10.96995329]
[1763621466721,0.34705236,142.61,142.6,0.66]
[1763621466924,2.02705236,142.61,142.59,10.96995329]
[1763621467342,0.34705236,142.61,142.6,18.64257601]
[1763621467640,2.02705236,142.61,142.6,18.64257601]
[1763621467814,2.02705236,142.61,142.6,11.62995329]
[1763621468019,2.02705236,142.61,142.6,0.66]
[1763621468620,2.02705236,142.61,142.6,7.67262272]
[1763621469244,2.02705236,142.61,142.6,0.66]
[1763621469417,2.02705236,142.61,142.6,7.67262272]
[1763621469736,0.34705236,142.61,142.6,7.67262272]
[1763621469954,2.02705236,142.61,142.6,0.66]
[1763621470241,2.74705236,142.61,142.55,0.66]
[1763621470416,9.03919463,142.61,142.56,0.66]
[1763621470610,20.00927608,142.61,142.56,11.62995329]
[1763621471020,20.00927608,142.61,142.57,0.66]
[1763621471228,10.96995329,142.6,142.57,0.66]
[1763621471539,9.03932279,142.61,142.57,0.66]
[1763621471743,1.68,142.6,142.59,10.96995329]
[1763621472237,1.68,142.6,142.58,10.96995329]
[1763621472427,1.68,142.6,142.58,11.62995329]
[1763621472624,1.68,142.6,142.58,0.66]
[1763621473028,1.68,142.6,142.58,11.62995329]
[1763621473421,1.68,142.6,142.59,11.62995329]
[1763621473622,1.68,142.6,142.58,11.62995329]
[1763621474226,1.68,142.6,142.58,0.66]
[1763621474827,8.69274315,142.6,142.56,0.66]
[1763621475031,8.69274315,142.6,142.57,0.66]
[1763621475345,8.69274315,142.6,142.57,7.75459419]
[1763621475543,9.78882769,142.61,142.58,7.09459419]
[1763621475853,17.52085374,142.62,142.58,7.09459419]
[1763621475854,1.68,142.6,142.58,7.75459419]
[1763621476142,1.68,142.6,142.59,0.66]
[1763621476959,1.68,142.6,142.58,7.09459419]
[1763621477250,1.68,142.6,142.59,0.66]
[1763621477438,1.68,142.6,142.57,14.10842816]
[1763621477619,1.68,142.6,142.57,0.66]
[1763621477816,1.68,142.6,142.58,0.66]
[1763621478652,0.72,142.59,142.52,26.49379257]
[1763621478823,9.78882769,142.58,142.53,7.75459419]
[1763621479146,1.68,142.57,142.54,0.66]
[1763621480451,1.68,142.57,142.54,0.68]
[1763621480665,1.68,142.56,142.52,9.03052507]
[1763621480948,11.46882769,142.56,142.52,16.72692717]
[1763621481126,1.68,142.55,142.53,0.68]
[1763621481329,9.78882769,142.56,142.53,0.68]
[1763621481330,1.68,142.54,142.53,0.68]
[1763621482127,1.68,142.54,142.53,7.69606679]
[1763621482445,1.68,142.54,142.53,7.77459419]
[1763621482626,1.68,142.54,142.52,16.04665235]
[1763621482831,1.68,142.54,142.52,16.72665235]
[1763621483027,1.68,142.54,142.52,16.04665235]
[1763621483227,0.71,142.56,142.52,16.72665235]
[1763621483448,1.68,142.55,142.53,0.68]
[1763621483754,0.71,142.61,142.53,0.68]
[1763621483955,19.27342188,142.6,142.55,7.09459419]
[1763621484153,9.78882769,142.58,142.54,7.09459419]
[1763621484331,1.68,142.57,142.54,7.09459419]
[1763621484633,1.68,142.57,142.55,0.68]
[1763621485326,1.68,142.57,142.56,7.09459419]
[1763621485535,1.68,142.57,142.55,14.78921905]
[1763621485937,1.68,142.57,142.55,14.10921905]
[1763621486146,1.68,142.57,142.56,0.68]
[1763621487863,1.68,142.57,142.56,7.69459034]
[1763621488052,1.68,142.57,142.53,0.71]
[1763621488560,1.68,142.57,142.54,2.64918872]
[1763621489064,1.68,142.57,142.54,3.35918872]
[1763621489429,2.64918872,142.55,142.52,1.93593088]
[1763621489630,7.72459034,142.56,142.52,1.93593088]
[1763621489631,30.55897641,142.53,142.52,1.93593088]
[1763621489833,34.92585448,142.53,142.52,1.93593088]
[1763621490067,35.63585448,142.53,142.52,1.93593088]
[1763621490236,38.2850432,142.53,142.52,1.93593088]
[1763621491254,17.51489448,142.53,142.52,1.93593088]
[1763621491485,93.2604448,142.7,142.52,1.93593088]
[1763621491486,18.83096,142.56,142.52,1.93593088]
[1763621491654,1.68,142.55,142.52,9.66230816]
[1763621491852,2.64918872,142.57,142.53,0.71]
[1763621492157,1.68,142.56,142.53,7.72606679]
[1763621492355,1.68,142.55,142.53,7.72606679]
[1763621492553,1.68,142.55,142.54,0.71]
[1763621493176,1.68,142.55,142.54,7.8083933]
[1763621493476,1.68,142.55,142.54,0.71]
[1763621493852,1.68,142.55,142.54,7.72557457]
[1763621494181,9.78882769,142.54,142.52,1.93593088]
[1763621494360,17.59722099,142.54,142.52,1.93593088]
[1763621494560,10.49882769,142.54,142.52,1.93593088]
[1763621494761,15.79352061,142.55,142.52,1.93593088]
[1763621494762,8.69512731,142.55,142.52,1.93593088]
[1763621495160,8.69512731,142.55,142.52,2.64593088]
[1763621495161,1.68,142.55,142.52,2.64593088]
[1763621495366,1.7,142.54,142.53,0.71]
[1763621496467,1.7,142.54,142.52,1.93593088]
[1763621496661,27.32489515,142.57,142.53,0.71]
[1763621496876,9.78882769,142.55,142.52,1.93593088]
[1763621497077,34.05952509,142.56,142.54,7.0983933]
[1763621497078,1.7,142.56,142.54,7.0983933]
[1763621497684,1.7,142.56,142.52,8.95234172]
[1763621497685,1.7,142.56,142.55,7.8083933]
[1763621497863,1.7,142.56,142.55,0.71]
[1763621498065,1.7,142.58,142.55,7.8083933]
[1763621498366,1.7,142.58,142.55,7.72489977]
[1763621498552,1.7,142.58,142.52,1.93593088]
[1763621498553,9.78882769,142.57,142.52,1.93593088]
[1763621498756,9.78882769,142.55,142.52,1.93593088]
[1763621498957,1.7,142.54,142.52,1.93593088]
[1763621499377,2.41,142.54,142.52,1.93593088]
[1763621500285,1.7,142.54,142.52,2.64593088]
[1763621500584,1.7,142.54,142.53,0.71]
[1763621502079,1.7,142.54,142.53,7.8083933]
[1763621502379,1.7,142.56,142.53,0.71]
[1763621502597,1.7,142.56,142.54,0.71]
[1763621503257,1.7,142.56,142.52,1.93593088]
[1763621503458,1.7,142.56,142.53,7.8083933]
[1763621503778,11.48882769,142.58,142.53,7.8083933]
[1763621503962,1.7,142.58,142.54,7.8083933]
[1763621504162,1.7,142.58,142.56,7.01459034]
[1763621504684,1.7,142.58,142.53,0.71]
[1763621504899,2.41,142.58,142.54,0.71]
[1763621505065,9.5083933,142.58,142.54,0.71]
[1763621505377,18.12096,142.53,142.52,1.93593088]
[1763621505576,29.60978769,142.53,142.52,1.93593088]
[1763621505775,19.29722099,142.53,142.52,1.93593088]
[1763621505978,12.19882769,142.53,142.52,1.93593088]
[1763621506282,26.31328778,142.53,142.52,1.93593088]
[1763621507082,18.50489448,142.53,142.52,1.93593088]
[1763621507291,1.7,142.53,142.52,2.64593088]
[1763621507770,1.7,142.53,142.52,1.93593088]
[1763621509398,44.43424778,142.53,142.52,1.93593088]
[1763621510202,11.48882769,142.53,142.52,1.93593088]
[1763621510591,18.50489448,142.53,142.52,1.93593088]
[1763621511475,25.60328778,142.53,142.52,1.93593088]
[1763621512168,26.28328778,142.53,142.52,1.93593088]
[1763621513586,9.78882769,142.52,142.45,0.71]
[1763621513884,9.78882769,142.48,142.45,0.71]
[1763621514188,1.7,142.47,142.45,0.71]
[1763621514378,1.7,142.47,142.43,7.73087337]
[1763621514692,1.7,142.47,142.44,0.71]
[1763621515073,1.7,142.47,142.46,7.0983933]
[1763621515381,9.78882769,142.45,142.39,0.1]
[1763621515582,7.0983933,142.41,142.39,0.1]
[1763621515790,1.7,142.4,142.39,0.1]
[1763621516166,11.48882769,142.4,142.39,0.1]
[1763621516386,1.7,142.4,142.39,0.81]
[1763621516570,1.7,142.42,142.39,14.9310724]
[1763621516768,1.7,142.42,142.4,0.71]
[1763621517090,9.78882769,142.41,142.39,0.1]
[1763621517273,1.7,142.42,142.39,0.1]
[1763621517479,1.7,142.42,142.39,0.81]
[1763621519288,9.78882769,142.41,142.39,0.81]
[1763621519607,14.11952284,142.43,142.39,0.81]
[1763621519608,9.78882769,142.43,142.39,0.81]
[1763621520479,9.78882769,142.43,142.39,7.83283934]
[1763621520688,1.7,142.44,142.39,14.93123264]
[1763621520882,1.7,142.44,142.4,0.71]
[1763621521085,9.78882769,142.45,142.4,0.71]
[1763621521408,15.81833125,142.46,142.4,7.8083933]
[1763621521409,1.7,142.46,142.4,7.8083933]
[1763621521595,1.7,142.46,142.42,7.02148574]
[1763621522140,1.7,142.46,142.43,0.71]
[1763621522591,8.7983933,142.46,142.39,0.1]
[1763621522792,7.0983933,142.45,142.4,0.71]
[1763621523029,16.88722099,142.44,142.4,0.71]
[1763621523313,1.7,142.43,142.4,0.71]
[1763621523705,1.7,142.43,142.41,7.02197879]
[1763621523898,9.78882769,142.44,142.41,7.02197879]
[1763621524099,9.78882769,142.44,142.41,7.73197879]
[1763621524301,11.48882769,142.45,142.41,0.71]
[1763621524516,0.68,142.44,142.39,0.1]
[1763621524700,7.0983933,142.43,142.39,0.1]
[1763621524900,7.0983933,142.44,142.39,0.81]
[1763621525225,9.78882769,142.44,142.39,7.83292133]
[1763621525601,16.88722099,142.44,142.4,0.71]
[1763621525911,23.90790627,142.44,142.4,0.71]
[1763621526233,7.0983933,142.41,142.39,0.1]
[1763621526402,18.58722099,142.42,142.39,0.1]
[1763621527006,8.7983933,142.42,142.39,0.81]
[1763621527241,16.88722099,142.43,142.39,0.81]
[1763621527719,7.02148574,142.42,142.39,0.81]
[1763621528122,15.83891369,142.44,142.39,7.8329457]
[1763621528305,9.78882769,142.45,142.39,7.8329457]
[1763621528506,25.61063196,142.48,142.41,7.0983933]
[1763621528706,7.0983933,142.49,142.42,7.0983933]
[1763621528911,7.0983933,142.49,142.43,0.71]
[1763621529216,18.50647771,142.5,142.43,0.71]
[1763621529525,7.0983933,142.49,142.43,0.71]
[1763621529714,7.0983933,142.49,142.44,7.02049985]
[1763621530029,9.78882769,142.49,142.44,7.02049985]
[1763621530323,16.88722099,142.49,142.45,0.71]
[1763621530917,16.88722099,142.49,142.45,7.72971891]
[1763621531221,9.78882769,142.49,142.45,7.72971891]
[1763621531395,1.7,142.5,142.46,7.8083933]
[1763621531596,7.7783933,142.49,142.44,7.02036088]
[1763621531820,9.4783933,142.49,142.44,7.02036088]
[1763621532027,9.4783933,142.49,142.45,0.71]
[1763621532207,1.7,142.49,142.45,0.71]
[1763621533104,9.39832139,142.49,142.45,0.71]
[1763621533434,8.71832139,142.49,142.45,0.71]
[1763621533724,1.7,142.49,142.46,7.0983933]
[1763621534223,1.7,142.49,142.47,0.71]
[1763621536131,1.7,142.49,142.47,7.01887895]
[1763621536320,1.7,142.49,142.41,18.26394037]
[1763621536321,0.68,142.48,142.41,18.26394037]
[1763621536627,15.81660264,142.49,142.44,7.0983933]
[1763621536801,9.39820934,142.49,142.44,11.70875312]
[1763621537000,19.18703703,142.49,142.45,0.71]
[1763621537312,1.7,142.49,142.45,11.70875312]
[1763621537701,1.7,142.49,142.46,0.71]
[1763621538624,1.7,142.49,142.46,7.72913466]
[1763621538828,1.7,142.49,142.46,0.71]
[1763621539120,8.71805437,142.49,142.45,7.01988238]
[1763621539313,8.71805437,142.49,142.45,7.72988238]
[1763621541138,1.7,142.49,142.45,18.0186355]
[1763621541433,1.7,142.49,142.46,0.71]
[1763621542631,1.7,142.49,142.46,7.72944665]
[1763621543137,1.7,142.49,142.46,18.01819977]
[1763621543307,1.7,142.49,142.46,7.72944665]
[1763621543906,7.0175692,142.5,142.46,7.72944665]
[1763621543907,18.01595702,142.51,142.47,0.71]
[1763621544108,1.7,142.51,142.47,11.70875312]
[1763621544317,23.15758081,142.53,142.47,11.70875312]
[1763621544520,20.38482023,142.53,142.48,0.71]
[1763621544732,13.36875312,142.53,142.49,7.01803635]
[1763621544940,2.37,142.53,142.49,7.01803635]
[1763621545147,1.7,142.53,142.5,0.71]
[1763621545903,18.20439641,142.58,142.5,0.71]
[1763621546109,9.78882769,142.56,142.51,10.99875312]
[1763621546328,9.78882769,142.56,142.52,0.71]
[1763621547053,9.78882769,142.56,142.52,7.72636575]
[1763621547234,9.78882769,142.56,142.52,0.71]
[1763621547235,16.80354653,142.56,142.52,0.71]
[1763621547438,16.80354653,142.56,142.52,7.72644691]
[1763621548061,9.78882769,142.56,142.53,0.66]
[1763621548728,16.8035017,142.56,142.53,0.66]
[1763621549626,1.7,142.57,142.53,18.67478593]
[1763621549945,1.7,142.57,142.55,10.99875312]
[1763621550127,1.7,142.57,142.54,0.66]
[1763621550329,9.78882769,142.59,142.55,10.99875312]
[1763621550540,11.48882769,142.59,142.55,10.99875312]
[1763621550840,11.48882769,142.59,142.56,0.66]
[1763621551226,1.7,142.59,142.56,18.67333248]
[1763621551430,1.7,142.59,142.56,7.67457936]
[1763621551633,1.7,142.59,142.57,0.66]
[1763621552041,1.7,142.59,142.56,10.99875312]
[1763621552327,1.7,142.59,142.57,11.65875312]
[1763621552731,1.7,142.59,142.58,0.66]
[1763621552953,1.7,142.59,142.58,11.65875312]
[1763621553134,1.7,142.59,142.58,0.66]
[1763621553552,16.80102368,142.61,142.58,0.66]
[1763621553733,8.71219599,142.61,142.58,0.66]
[1763621554053,18.50102368,142.61,142.58,0.66]
[1763621555732,11.48882769,142.61,142.58,7.67354127]
[1763621555959,20.78758081,142.59,142.54,0.66]
[1763621556148,1.7,142.58,142.54,11.65875312]
[1763621556667,1.7,142.58,142.55,0.66]
[1763621556855,1.7,142.58,142.55,11.65875312]
[1763621557044,1.7,142.58,142.56,10.99875312]
[1763621557375,1.7,142.58,142.56,0.66]
[1763621559957,1.7,142.58,142.54,18.01413548]
[1763621560171,0.69,142.57,142.49,0.66]
[1763621560360,9.78882769,142.54,142.5,10.99875312]
[1763621560849,9.78882769,142.54,142.51,0.66]
[1763621562141,16.80454368,142.54,142.51,0.66]
[1763621563162,9.78882769,142.54,142.51,18.6757519]
[1763621563351,16.80461412,142.54,142.51,11.65875312]
[1763621563939,16.80461412,142.54,142.51,0.66]
[1763621565179,16.80461412,142.54,142.48,10.99875312]
[1763621565180,9.78882769,142.52,142.48,10.99875312]
[1763621565377,1.7,142.51,142.5,10.99875312]
[1763621565670,1.7,142.51,142.5,11.65875312]
[1763621566049,18.50532528,142.53,142.5,0.66]
[1763621569609,11.68875312,142.52,142.47,11.65875312]
[1763621570118,9.78882769,142.51,142.48,0.66]
[1763621570323,1.7,142.5,142.48,11.65875312]
[1763621570617,1.7,142.52,142.49,10.99875312]
[1763621570812,1.7,142.52,142.51,10.99875312]
[1763621571015,1.7,142.54,142.51,11.66875312]
[1763621571217,1.7,142.54,142.52,11.66875312]
[1763621571424,1.7,142.54,142.52,0.67]
[1763621572008,1.7,142.54,142.52,11.66875312]
[1763621572289,9.78882769,142.58,142.53,18.01481991]
[1763621572496,1.7,142.57,142.54,10.99875312]
[1763621572802,1.7,142.57,142.54,11.66875312]
[1763621573001,1.7,142.57,142.55,0.67]
[1763621576598,21.45758081,142.56,142.51,0.67]
[1763621576885,21.45758081,142.56,142.52,0.67]
[1763621577499,0.67,142.55,142.51,11.66875312]
[1763621577690,1.7,142.54,142.51,0.67]
[1763621577887,1.7,142.54,142.51,7.68694013]
[1763621578523,1.7,142.54,142.52,0.67]
[1763621579118,1.7,142.54,142.51,7.01694013]
[1763621579287,1.7,142.54,142.52,0.67]
[1763621579995,1.7,142.54,142.52,11.66875312]
[1763621580395,1.7,142.54,142.53,0.67]
[1763621580818,1.7,142.54,142.52,9.79275312]
[1763621581118,1.7,142.54,142.51,10.99875312]
[1763621581290,1.7,142.54,142.52,7.01655907]
[1763621581494,2.37,142.54,142.5,10.99875312]
[1763621581715,9.38561713,142.54,142.48,26.26465713]
[1763621581924,8.71561713,142.54,142.5,10.99875312]
[1763621582512,1.7,142.54,142.52,10.99875312]
[1763621583201,1.7,142.54,142.53,18.68481991]
[1763621583396,1.7,142.56,142.53,18.68481991]
[1763621584425,9.78882769,142.58,142.54,11.66875312]
[1763621584626,1.7,142.57,142.54,11.66875312]
[1763621584818,1.7,142.57,142.55,0.67]
[1763621585323,1.7,142.57,142.56,18.01334346]
[1763621585623,1.7,142.59,142.56,18.01334346]
[1763621585816,1.7,142.59,142.56,18.68334346]
[1763621585993,1.7,142.59,142.56,7.68459034]